bitfinex/quotes_ETHUSD_20240710
["timestamp","ask_amount","ask_price","bid_price","bid_amount"]
[1720627330520,0.3205,3135.2,3132.8,3.0]
[1720627330819,0.3205,3134.7,3132.1,3.862]
[1720627331118,1.5,3134.5,3131.5,3.862]
[1720627331270,1.5,3134.5,3131.6,0.3862]
[1720627331477,0.8705,3134.4,3131.6,0.3862]
[1720627332213,0.8705,3134.4,3131.6,3.57944]
[1720627332415,0.8705,3134.4,3131.6,0.3862]
[1720627332601,0.38705,3134.3,3131.7,0.42482]
[1720627332779,0.55,3134.2,3131.7,0.42482]
[1720627332974,0.55,3134.2,3131.8,3.19304]
[1720627333176,0.38705,3134.3,3132.3,3.862]
[1720627333389,3.518,3134.6,3132.4,0.55]
[1720627333819,3.518,3134.6,3132.9,3.862]
[1720627334188,3.518,3134.6,3132.4,6.7424]
[1720627334578,3.518,3134.6,3132.4,3.55]
[1720627335415,0.55,3134.5,3132.4,3.55]
[1720627335615,0.4068,3134.4,3132.5,0.7412]
[1720627336418,0.4068,3134.4,3132.6,0.55]
[1720627336620,0.4068,3134.4,3132.7,3.19212]
[1720627336782,0.4068,3134.4,3132.9,3.862]
[1720627337487,0.4068,3134.4,3133.0,0.55]
[1720627337695,0.4068,3134.4,3133.1,0.4412]
[1720627339320,0.4068,3134.4,3132.9,3.862]
[1720627339478,0.4068,3134.4,3132.3,3.862]
[1720627339479,0.55,3134.3,3132.3,3.862]
[1720627339674,0.55,3134.3,3131.8,3.19305]
[1720627340630,0.55,3134.3,3131.7,4.28682]
[1720627340631,0.3205,3134.2,3131.7,4.28682]
[1720627340919,3.8385,3134.2,3131.8,0.428682]
[1720627341119,0.3205,3134.0,3131.8,0.428682]
[1720627341621,0.8705,3133.9,3131.8,0.428682]
[1720627341992,0.3205,3133.8,3130.9,3.862]
[1720627342182,1.49934306,3133.7,3130.9,3.862]
[1720627342519,0.55,3133.6,3130.9,3.862]
[1720627342692,3.518,3133.5,3130.9,3.862]
[1720627342893,3.9568,3133.4,3131.0,3.58005]
[1720627343592,3.4068,3133.4,3131.1,0.06385768]
[1720627343793,3.4068,3133.4,3131.5,3.862]
[1720627343997,0.4068,3133.4,3131.6,0.55]
[1720627344217,0.3205,3134.4,3131.6,0.55]
[1720627344218,3.0,3133.3,3131.6,0.55]
[1720627344425,3.48221461,3134.4,3131.6,0.55]
[1720627344713,3.8705,3134.3,3131.6,0.55]
[1720627344883,3.8705,3134.3,3131.6,3.55]
[1720627345083,3.8705,3134.3,3131.7,0.06384502]
[1720627345418,0.33313358,3134.5,3132.1,3.19274]
[1720627345620,0.33313358,3134.5,3132.3,7.05454]
[1720627345826,0.33313358,3134.5,3132.4,0.06383259]
[1720627346026,3.518,3135.1,3132.5,0.55]
[1720627346027,0.3205,3135.0,3132.5,0.55]
[1720627346187,0.33307967,3134.9,3132.5,6.93451]
[1720627346390,0.33307967,3134.9,3132.6,0.993451]
[1720627346592,0.33307967,3134.9,3132.7,0.55]
[1720627346988,0.33307967,3134.9,3132.5,3.7423]
[1720627347295,0.33307967,3134.9,3132.6,3.0]
[1720627347501,0.33307967,3134.9,3132.7,0.55]
[1720627347703,0.65357967,3134.9,3132.8,0.355]
[1720627347936,0.65357967,3134.9,3132.4,3.0]
[1720627348231,0.65357967,3134.9,3132.5,0.55]
[1720627348594,0.55,3134.8,3132.5,3.74231]
[1720627348789,0.55,3134.8,3132.6,3.0]
[1720627349039,0.55,3134.8,3132.7,0.55]
[1720627349194,0.55,3134.8,3132.8,0.674222]
[1720627349556,0.33307967,3134.9,3132.9,0.55]
[1720627350031,0.33307967,3134.9,3132.8,3.674222]
[1720627350340,0.3202,3134.8,3132.4,3.0]
[1720627350496,0.3202,3134.8,3132.5,0.55]
[1720627350926,0.55,3134.7,3132.5,0.55]
[1720627351293,0.33307967,3134.9,3132.6,3.19223]
[1720627351506,0.33307967,3134.9,3132.7,3.55]
[1720627351707,0.33330797,3134.8,3132.8,0.674223]
[1720627352233,0.33330797,3134.8,3132.9,3.92582473]
[1720627352438,3.518,3135.1,3133.0,3.55]
[1720627353589,3.0,3135.0,3133.0,3.55]
[1720627355495,0.55,3134.9,3133.0,3.0]
[1720627355934,0.55,3134.9,3132.5,6.19232]
[1720627357002,0.55,3134.9,3132.6,0.55]
[1720627357204,0.355,3134.8,3132.7,0.674232]
[1720627357621,0.355,3134.8,3132.7,3.866292]
[1720627357825,0.355,3134.8,3132.8,3.55]
[1720627358550,0.355,3134.8,3132.9,3.862]
[1720627358699,0.355,3134.8,3133.0,3.55]
[1720627358895,0.355,3134.8,3133.1,1.060387]
[1720627359721,0.355,3134.8,3133.2,0.55]
[1720627359924,0.355,3134.8,3133.2,3.55]
[1720627360150,3.0,3135.0,3133.2,3.55]
[1720627360151,3.0,3135.0,3133.3,3.19151]
[1720627360438,0.50078223,3136.0,3133.9,3.19089]
[1720627360599,0.77666078,3136.8,3134.2,3.862]
[1720627360800,0.3329322,3136.2,3134.3,0.3862]
[1720627361000,3.518,3136.1,3134.0,3.0]
[1720627361248,3.518,3136.1,3133.1,1.060387]
[1720627361249,0.77670182,3136.0,3133.1,1.060387]
[1720627361409,5.79470182,3136.0,3133.1,4.060387]
[1720627361616,3.77670182,3135.9,3133.1,4.060387]
[1720627361844,3.0,3135.9,3133.1,4.060387]
[1720627362506,0.3202,3135.1,3132.1,0.65260572]
[1720627362738,1.5,3135.0,3131.8,4.51460572]
[1720627363005,0.3202,3134.8,3131.8,3.862]
[1720627363235,1.09722446,3134.8,3131.8,3.862]
[1720627363504,0.3202,3134.3,3131.4,0.65260572]
[1720627363828,1.5,3133.8,3130.9,0.65260572]
[1720627364030,1.09722446,3133.7,3130.6,7.0562]
[1720627364214,1.64722446,3133.7,3130.6,7.0562]
[1720627364420,1.09722446,3133.6,3130.6,7.0562]
[1720627364736,3.68272245,3133.5,3131.2,7.05563]
[1720627364908,3.68272245,3133.5,3131.8,7.05504]
[1720627364909,3.518,3133.5,3131.8,7.05504]
[1720627365111,3.0,3134.0,3131.8,3.862]
[1720627365347,3.518,3134.4,3131.8,3.862]
[1720627365505,3.77749562,3134.3,3131.8,3.862]
[1720627365839,0.77749562,3134.2,3131.2,4.51460572]
[1720627366057,0.77749562,3134.2,3131.3,1.09935143]
[1720627366058,0.3202,3134.0,3131.3,1.09935143]
[1720627366206,1.30524518,3134.1,3131.3,1.09935143]
[1720627366401,0.77749562,3134.0,3131.3,1.09935143]
[1720627366602,0.55,3133.9,3131.4,3.25721016]
[1720627366905,0.52774956,3134.1,3131.8,7.05504]
[1720627367102,3.518,3134.4,3132.0,3.19281]
[1720627367335,0.77744381,3134.3,3132.1,6.80656561]
[1720627367609,3.518,3134.4,3132.4,3.862]
[1720627367819,3.518,3134.4,3132.5,0.06383212]
[1720627368102,3.518,3134.4,3132.5,3.06383212]
[1720627368343,0.16096873,3135.3,3132.6,1.24258321]
[1720627368552,1.5,3135.0,3132.6,0.69258321]
[1720627368735,0.77722045,3134.9,3132.5,3.0]
[1720627369047,0.3202,3134.7,3131.8,3.862]
[1720627369342,0.3202,3134.5,3131.8,3.862]
[1720627369543,0.3202,3134.1,3131.3,0.54935143]
[1720627369705,1.09742045,3134.1,3131.3,0.54935143]
[1720627369911,3.518,3134.4,3131.3,0.54935143]
[1720627369912,1.32722045,3134.0,3131.3,0.54935143]
[1720627370110,1.09742045,3133.9,3131.3,0.54935143]
[1720627370313,0.55,3133.8,3131.3,0.54935143]
[1720627370510,0.77722045,3133.7,3131.3,0.54935143]
[1720627370745,0.77722045,3133.7,3131.4,0.37429914]
[1720627370905,1.32722045,3133.6,3131.5,0.55]
[1720627371114,0.77722045,3133.5,3131.5,0.55]
[1720627371428,0.77722045,3133.4,3131.6,0.06385121]
[1720627371632,0.33300024,3133.8,3131.8,3.19303]
[1720627371838,0.33300024,3133.8,3131.9,3.760503]
[1720627372042,0.77747826,3134.2,3132.0,0.55]
[1720627372320,0.77747826,3134.2,3132.0,0.61383966]
[1720627372470,0.77747826,3134.2,3132.1,3.19268]
[1720627372633,0.77747826,3134.2,3132.2,3.55]
[1720627372831,0.77747826,3134.1,3132.3,0.674268]
[1720627373025,3.518,3134.4,3132.3,0.674268]
[1720627373026,0.77747826,3134.0,3132.3,0.674268]
[1720627373264,0.77747826,3133.9,3132.3,0.674268]
[1720627373462,0.77747826,3133.8,3132.3,0.674268]
[1720627373733,6.18953208,3134.4,3132.3,0.674268]
[1720627374033,2.33857696,3134.2,3132.3,0.674268]
[1720627374348,2.33857696,3133.6,3131.1,3.862]
[1720627374553,2.33857696,3133.4,3131.1,3.862]
[1720627374855,3.11594966,3133.3,3130.8,3.19406]
[1720627375079,0.31159497,3133.2,3130.9,0.638815]
[1720627375237,2.33937215,3133.2,3130.9,0.638815]
[1720627375435,2.33937215,3132.9,3129.7,0.66168172]
[1720627375733,2.33937215,3132.4,3129.8,3.862]
[1720627375933,0.77785536,3132.8,3129.8,3.862]
[1720627375934,2.33937215,3132.2,3129.9,0.3862]
[1720627376133,2.33937215,3132.2,3130.0,3.19486]
[1720627376134,0.77785536,3132.1,3130.0,3.19486]
[1720627376383,0.77785536,3132.1,3130.4,3.862]
[1720627376531,2.33937215,3132.9,3130.8,3.19405]
[1720627376729,0.3202,3133.3,3130.8,3.19405]
[1720627376730,0.77796051,3132.8,3130.9,3.25782089]
[1720627377042,2.76338335,3133.3,3131.0,3.64518709]
[1720627377043,2.33937215,3133.3,3131.0,3.64518709]
[1720627377313,3.66718982,3133.2,3131.1,0.06385761]
[1720627377452,0.77781767,3133.1,3131.0,3.64518709]
[1720627377768,0.77781767,3133.1,3131.1,0.55]
[1720627377971,0.77781767,3133.1,3131.1,0.61385759]
[1720627378273,0.77785502,3133.0,3131.1,0.61385759]
[1720627378474,0.77785503,3132.9,3131.2,0.42590447]
[1720627378654,3.55,3133.2,3131.3,0.06385756]
[1720627378857,0.77783757,3133.1,3131.3,0.06385756]
[1720627379264,0.77783757,3133.1,3131.3,3.06385756]
[1720627379646,3.0,3133.4,3131.3,3.06385756]
[1720627379856,1.31146436,3133.3,3131.4,0.6683412]
[1720627380053,0.77772028,3133.2,3131.5,0.06385388]
[1720627380263,3.0,3133.5,3131.5,0.06385388]
[1720627380472,0.77768212,3133.4,3131.6,3.92585385]
[1720627380651,3.518,3133.8,3132.1,3.19273]
[1720627380838,3.518,3133.8,3132.2,3.06383609]
[1720627381037,3.518,3133.8,3132.5,3.19232]
[1720627381344,3.518,3133.8,3132.7,3.19211]
[1720627381573,3.518,3133.8,3132.6,3.0]
[1720627381884,4.75336514,3135.5,3132.6,3.0]
[1720627381885,2.33567246,3134.6,3132.6,3.0]
[1720627382089,2.33567246,3134.6,3132.7,0.3]
[1720627382090,0.23356725,3134.5,3132.7,0.3]
[1720627382275,2.33567246,3134.3,3132.3,3.62565661]
[1720627382748,0.56621836,3134.5,3132.3,3.62565661]
[1720627382749,2.33567246,3134.4,3132.3,3.62565661]
[1720627382959,5.33567246,3134.4,3132.3,3.62565661]
[1720627383672,2.33567246,3134.1,3132.3,3.62565661]
[1720627383871,2.33567246,3133.9,3131.0,3.862]
[1720627384071,2.33567246,3133.3,3131.0,3.862]
[1720627384262,2.33567246,3133.2,3130.9,3.19396]
[1720627384459,2.88567246,3133.1,3130.6,3.1942]
[1720627384662,5.33567246,3133.0,3130.4,3.19443]
[1720627384861,2.33567246,3132.7,3130.5,3.19434]
[1720627385082,5.75901309,3133.0,3130.6,0.319434]
[1720627385083,0.23356725,3132.6,3130.6,0.319434]
[1720627385484,0.23356725,3132.6,3130.3,3.862]
[1720627385485,2.5708907,3132.6,3130.3,7.05657]
[1720627385763,3.0,3132.5,3130.5,3.19437]
[1720627385958,3.0,3132.5,3130.3,7.05657]
[1720627386376,2.5708907,3132.6,3130.3,7.05657]
[1720627386377,0.23356725,3132.6,3130.3,7.05657]
[1720627386656,3.23356725,3132.6,3130.4,6.19447]
[1720627386857,0.39660354,3132.5,3130.5,1.325104]
[1720627387666,5.33732345,3132.8,3130.5,1.325104]
[1720627387860,0.55,3132.7,3130.5,1.325104]
[1720627388070,3.0,3132.7,3130.5,1.325104]
[1720627388276,2.33551427,3132.8,3130.5,1.325104]
[1720627388600,0.55,3132.7,3130.5,1.325104]
[1720627388793,2.62415487,3132.6,3130.6,0.4325104]
[1720627389300,3.0,3132.5,3130.6,3.6267404]
[1720627389503,3.28855953,3132.6,3130.7,6.74411]
[1720627389702,3.0,3132.5,3130.8,3.2579009]
[1720627389863,2.75882623,3133.1,3131.1,3.19374]
[1720627390064,0.27588262,3133.0,3131.2,1.25260816]
[1720627390267,0.27588262,3133.0,3131.2,4.188752]
[1720627390466,0.27588262,3133.0,3131.2,0.638752]
[1720627390674,0.27588262,3133.0,3131.0,3.0]
[1720627390987,2.61147796,3133.0,3131.0,3.0]
[1720627391202,2.33559534,3132.8,3131.0,3.0]
[1720627391408,2.33559534,3132.8,3130.6,0.4325104]
[1720627391580,2.8845913,3132.7,3130.6,0.4325104]
[1720627391780,3.28845913,3132.6,3130.7,0.34325104]
[1720627392020,0.28845913,3132.6,3130.7,0.34325104]
[1720627392346,6.80645913,3132.6,3130.7,0.34325104]
[1720627392533,2.3345913,3132.4,3129.7,3.862]
[1720627392681,2.3345913,3132.2,3129.7,7.05718]
[1720627392886,0.55,3132.1,3129.7,7.05718]
[1720627393108,3.55,3132.1,3129.7,7.05718]
[1720627393317,0.355,3132.0,3129.9,3.19497]
[1720627393521,0.355,3132.0,3130.2,3.19468]
[1720627393685,0.33189935,3132.5,3130.5,7.05633]
[1720627393881,3.518,3132.6,3130.8,3.19407]
[1720627394086,3.518,3132.6,3130.9,3.0]
[1720627394683,3.518,3132.6,3129.9,3.862]
[1720627394884,0.33178393,3132.5,3130.0,3.0]
[1720627395088,0.38497839,3132.4,3130.1,0.6862]
[1720627395533,0.55,3132.3,3130.1,0.6862]
[1720627396985,0.55,3132.3,3130.1,3.6862]
[1720627397183,0.38497839,3132.4,3130.2,0.06388007]
[1720627397388,0.38497839,3132.4,3130.3,3.74449]
[1720627397687,0.37167623,3132.3,3130.5,7.05629]
[1720627397888,0.37167623,3132.3,3130.6,3.55]
[1720627398939,3.518,3132.6,3130.6,3.55]
[1720627399274,3.518,3132.6,3130.9,3.19391]
[1720627399400,2.3313965,3133.7,3131.1,3.862]
[1720627399599,2.75396212,3134.0,3131.1,3.862]
[1720627399600,3.518,3133.6,3131.2,6.80741862]
[1720627399910,3.518,3133.6,3132.1,3.19273]
[1720627400100,2.3313965,3134.6,3132.2,3.55]
[1720627400299,3.518,3134.5,3132.4,3.862]
[1720627400502,3.518,3134.5,3132.5,0.55]
[1720627400719,3.518,3134.5,3132.5,3.55]
[1720627400919,0.38496366,3134.4,3132.6,0.7412]
[1720627401932,3.38496366,3134.4,3132.6,0.7412]
[1720627402365,0.38496366,3134.4,3132.6,0.7412]
[1720627403039,3.518,3134.5,3132.8,3.19202]
[1720627403239,3.518,3134.5,3132.9,3.0]
[1720627403533,3.518,3134.5,3132.9,3.06382421]
[1720627404042,2.33122156,3135.3,3132.9,3.0]
[1720627404243,3.0,3134.4,3132.9,3.0]
[1720627404442,5.66289822,3135.2,3133.0,0.3]
[1720627404762,2.33122156,3135.1,3133.0,0.3]
[1720627404910,0.55,3135.0,3133.0,0.3]
[1720627405115,3.55,3135.0,3133.0,0.3]
[1720627406460,5.88122156,3135.0,3133.0,0.3]
[1720627406749,2.33122156,3134.8,3132.6,0.7412]
[1720627406913,0.55,3134.7,3132.6,0.7412]
[1720627407225,3.518,3134.6,3132.6,0.7412]
[1720627407409,3.0,3134.5,3132.7,0.37412]
[1720627408127,3.0,3134.5,3132.8,3.25583607]
[1720627408345,3.518,3135.1,3133.1,3.19171]
[1720627408521,3.518,3135.1,3133.2,0.55]
[1720627408855,3.518,3135.1,3133.3,0.06381611]
[1720627409018,3.518,3135.1,3133.2,3.55]
[1720627409019,3.518,3135.1,3133.6,3.19113]
[1720627409220,3.518,3135.1,3133.7,7.47580471]
[1720627409716,4.75336514,3136.8,3133.8,0.06380471]
[1720627409717,2.33248987,3136.4,3133.8,0.06380471]
[1720627410067,3.518,3136.3,3134.3,7.05248]
[1720627410214,3.8497068,3136.3,3134.4,3.705248]
[1720627410417,3.518,3136.3,3134.4,3.705248]
[1720627410615,0.65191627,3136.2,3133.8,3.0]
[1720627410817,0.3202,3136.0,3133.1,3.862]
[1720627411041,2.33248987,3135.7,3133.1,3.862]
[1720627411363,3.83183293,3135.4,3132.7,0.37412]
[1720627411542,2.33248987,3135.3,3132.7,0.37412]
[1720627411719,2.71567316,3135.2,3132.7,0.37412]
[1720627411920,0.55,3135.1,3132.7,0.37412]
[1720627412954,0.3202,3134.8,3131.5,3.19333]
[1720627413116,0.3202,3134.4,3131.4,3.19345]
[1720627413314,2.65268987,3134.2,3131.1,7.05574]
[1720627413659,0.3202,3134.0,3131.2,3.19359]
[1720627413875,3.518,3133.9,3131.1,3.862]
[1720627414168,3.518,3133.9,3131.9,3.19288]
[1720627414169,3.38382,3133.8,3131.9,3.19288]
[1720627414461,3.38382,3133.8,3131.8,3.862]
[1720627414821,3.38382,3133.8,3131.9,3.0]
[1720627415756,0.55,3133.7,3131.2,0.3862]
[1720627415979,1.02991804,3133.7,3131.3,0.42482]
[1720627416178,1.02991804,3133.7,3130.5,3.862]
[1720627416179,1.49934306,3133.4,3130.5,3.862]
[1720627416319,2.33248987,3133.3,3130.5,3.862]
[1720627416527,1.49934306,3133.4,3130.6,0.3862]
[1720627416528,2.33248987,3133.1,3130.6,0.3862]
[1720627416877,0.55,3133.0,3130.6,0.3862]
[1720627417053,3.55,3133.0,3130.6,0.3862]
[1720627417762,3.55,3133.0,3130.7,0.06386956]
[1720627418062,3.0,3133.1,3130.6,3.3862]
[1720627418270,3.0,3132.9,3130.7,3.91889]
[1720627418436,3.39011833,3133.1,3130.9,3.19388]
[1720627418623,3.39011833,3133.1,3131.0,3.55]
[1720627418968,0.47361971,3133.0,3131.1,4.536388]
[1720627419261,0.47361971,3133.0,3131.2,6.74362]
[1720627419425,0.47361971,3133.0,3131.3,0.06384908]
[1720627419620,0.47361971,3133.0,3131.4,0.55]
[1720627419821,0.47361971,3133.0,3131.2,3.55]
[1720627420045,0.47361971,3133.0,3131.3,0.8086388]
[1720627420242,0.47361971,3133.0,3131.2,3.55]
[1720627420243,0.47361971,3133.0,3131.2,3.0]
[1720627420668,0.47361971,3133.0,3129.9,3.862]
[1720627420965,2.66214207,3132.9,3129.9,3.862]
[1720627421165,5.3304651,3132.8,3129.3,7.05752]
[1720627421371,2.33055472,3132.6,3129.5,3.19536]
[1720627421669,3.75105547,3132.5,3129.6,0.319536]
[1720627421973,3.55,3132.4,3129.6,0.319536]
[1720627422327,3.55,3132.4,3129.9,3.862]
[1720627422526,3.55,3132.4,3130.0,3.0]
[1720627423220,3.55,3132.4,3130.0,3.06388019]
[1720627423426,3.55,3132.4,3130.1,0.69258802]
[1720627423728,3.55,3132.4,3130.1,1.24258802]
[1720627423954,3.0,3132.4,3130.1,4.43734802]
[1720627424173,3.0,3132.4,3130.5,3.862]
[1720627424377,3.0,3132.4,3130.6,3.0]
[1720627424527,3.0,3132.4,3130.6,3.6862]
[1720627427464,3.0,3132.4,3130.7,0.06386929]
[1720627427664,0.33167697,3132.9,3130.7,3.80795929]
[1720627427864,3.518,3133.2,3131.1,3.862]
[1720627428080,3.518,3133.2,3131.1,3.92586205]
[1720627428380,0.3518,3133.1,3131.2,3.39258621]
[1720627428577,0.3518,3133.1,3131.3,0.61385487]
[1720627428879,0.3518,3133.1,3131.3,0.55]
[1720627429232,0.3518,3133.1,3131.2,3.39258621]
[1720627429465,3.3518,3133.1,3131.2,3.39258621]
[1720627429772,0.51193804,3133.0,3131.3,0.72545862]
[1720627433431,3.0,3133.1,3131.3,0.78931317]
[1720627433970,3.0,3133.1,3131.3,3.98280317]
[1720627434125,3.0,3133.1,3131.5,3.19334]
[1720627434329,0.3202,3134.2,3131.6,3.55]
[1720627434566,0.3202,3134.2,3131.7,3.862]
[1720627434567,3.8382,3134.1,3131.7,3.862]
[1720627434775,3.0,3134.0,3131.8,3.7412]
[1720627435268,3.0,3134.0,3131.8,3.80504756]
[1720627435783,3.8382,3134.1,3131.8,3.80504756]
[1720627436133,3.8382,3134.1,3131.9,2.3063]
[1720627436374,3.8382,3134.1,3132.1,2.3063]
[1720627436679,0.41700185,3134.0,3132.2,0.30085801]
[1720627436971,0.41700185,3134.0,3131.8,3.7412]
[1720627436972,0.41700185,3134.0,3132.4,3.19242]
[1720627437150,0.41700185,3134.0,3132.6,2.4495]
[1720627438245,3.41700185,3134.0,3132.6,2.4495]
[1720627439075,0.41700185,3134.0,3132.6,2.4495]
[1720627439235,0.39350019,3133.9,3132.7,0.24495]
[1720627439437,0.39350019,3133.9,3132.7,3.24495]
[1720627439751,0.33346326,3133.8,3132.7,3.24495]
[1720627440152,0.33346326,3133.8,3132.7,3.30878115]
[1720627440349,0.33346326,3133.8,3132.7,3.24495]
[1720627440636,0.33346326,3133.8,3132.8,0.569445]
[1720627441150,0.33346326,3133.8,3132.7,3.24495]
[1720627441360,0.33346326,3133.8,3132.7,3.0]
[1720627441589,0.66536889,3133.8,3132.6,2.4495]
[1720627442680,0.77769876,3133.7,3132.6,2.4495]
[1720627442867,1.32769876,3133.7,3132.6,2.4495]
[1720627443069,0.97700553,3133.6,3131.2,2.3467]
[1720627443397,3.30591447,3133.6,3131.2,2.3467]
[1720627443725,1.32769876,3133.5,3131.3,2.3467]
[1720627443870,3.0,3133.5,3131.6,3.19325]
[1720627444213,0.19930677,3133.6,3131.9,3.19289]
[1720627444362,0.19930677,3133.6,3132.0,2.582189]
[1720627444709,0.66536889,3133.8,3132.0,2.2629]
[1720627444856,0.33346326,3133.8,3132.2,2.3713]
[1720627445056,0.33346326,3133.8,3132.2,3.0]
[1720627445258,0.33346326,3133.8,3132.4,2.3713]
[1720627445457,0.33346326,3133.8,3132.6,2.3713]
[1720627445701,0.33346326,3133.8,3132.8,2.3713]
[1720627446403,0.32548152,3133.8,3132.8,2.3713]
[1720627449703,0.3202,3133.7,3132.8,2.3713]
[1720627449872,0.8702,3133.7,3132.8,2.3713]
[1720627450073,2.65591946,3133.8,3132.2,2.4134]
[1720627450285,0.26559195,3133.7,3132.3,0.24134]
[1720627450502,0.32548152,3133.8,3132.3,0.24134]
[1720627451108,0.32548152,3133.8,3132.4,2.2629]
[1720627451320,0.32548152,3133.8,3132.5,3.862]
[1720627451532,0.32548152,3133.8,3132.6,2.8129]
[1720627451820,0.32548152,3133.8,3132.9,3.19191]
[1720627451976,2.33096815,3135.4,3133.1,2.3609]
[1720627452173,0.33171414,3135.2,3133.1,5.3609]
[1720627452874,2.66268229,3135.2,3133.1,2.3609]
[1720627453122,3.0,3135.1,3133.1,2.3609]
[1720627453325,0.33171414,3135.2,3133.2,2.8998]
[1720627453326,3.33171414,3135.2,3133.2,2.8998]
[1720627453628,3.33171414,3135.2,3133.4,2.3423]
[1720627453773,3.518,3135.3,3133.7,3.19111]
[1720627453974,3.518,3135.3,3133.9,2.3423]
[1720627455036,3.518,3135.3,3134.0,0.55]
[1720627455226,3.518,3135.3,3134.0,2.8923]
[1720627455448,2.32854019,3136.5,3134.2,2.4568]
[1720627455717,3.518,3136.5,3134.5,2.4568]
[1720627456087,3.518,3136.5,3134.6,2.4568]
[1720627456291,3.518,3136.5,3134.6,5.4568]
[1720627456482,0.3518,3136.4,3134.7,0.84568]
[1720627456677,0.3518,3136.4,3134.7,3.84568]
[1720627456884,0.68357347,3136.4,3134.6,2.4568]
[1720627457074,3.68357347,3136.4,3134.6,2.4568]
[1720627457274,0.68357347,3136.4,3134.6,2.4568]
[1720627457575,0.55,3136.3,3134.6,2.4568]
[1720627460002,0.55,3136.3,3133.9,3.0]
[1720627460003,2.32541511,3136.8,3135.1,2.3509]
[1720627460200,4.88004772,3139.1,3135.1,2.3509]
[1720627460201,2.32541511,3138.9,3137.0,3.18772]
[1720627460398,0.15916525,3139.9,3137.4,2.3509]
[1720627460599,2.32541511,3140.2,3137.4,2.3509]
[1720627460831,1.5,3140.1,3137.4,2.3509]
[1720627461124,0.16567536,3140.0,3137.5,0.55]
[1720627461326,2.2592,3140.6,3137.8,3.862]
[1720627461621,2.41877776,3140.6,3137.9,3.55]
[1720627462322,0.3202,3140.5,3137.9,3.55]
[1720627462699,0.4342541,3140.4,3137.9,0.55]
[1720627463725,0.1140541,3140.4,3137.9,0.55]
[1720627463931,0.3202,3140.3,3137.9,0.55]
[1720627465094,0.3202,3140.1,3137.7,3.55]
[1720627465335,0.55,3140.0,3137.7,1.5912]
[1720627465537,0.55,3140.2,3136.9,0.4267858]
[1720627465538,3.8683,3139.9,3136.9,0.4267858]
[1720627465835,3.8683,3139.9,3136.3,6.2407]
[1720627465836,0.3202,3139.4,3136.3,6.2407]
[1720627466034,1.5,3139.5,3136.3,6.2407]
[1720627466035,0.3202,3139.1,3136.3,6.2407]
[1720627466243,0.18195431,3139.0,3136.4,0.62407]
[1720627466662,0.55,3138.9,3136.4,0.62407]
[1720627466863,0.3202,3138.8,3136.4,0.62407]
[1720627467169,2.2948,3138.6,3135.6,3.862]
[1720627467330,2.2948,3138.6,3135.6,6.2758]
[1720627467659,0.55,3138.5,3135.6,6.2758]
[1720627467863,0.3202,3138.4,3135.6,6.2758]
[1720627468029,0.3202,3138.2,3135.6,6.2758]
[1720627468226,2.25867222,3138.1,3135.6,2.4138]
[1720627468471,1.5,3137.7,3134.3,3.862]
[1720627468644,1.5,3137.2,3134.3,3.862]
[1720627468970,0.3202,3137.3,3134.3,3.862]
[1720627469130,0.55,3137.1,3134.3,3.862]
[1720627469337,0.55,3137.1,3134.4,0.62436]
[1720627469690,3.0,3137.5,3134.4,0.62436]
[1720627469691,0.88279554,3137.4,3134.4,0.62436]
[1720627469828,0.3202,3137.3,3134.4,0.62436]
[1720627470052,0.55,3137.2,3134.4,0.62436]
[1720627470234,0.55,3137.2,3134.4,3.62436]
[1720627470536,1.49934306,3136.9,3134.5,0.748636]
[1720627470748,0.55,3136.8,3134.5,0.748636]
[1720627471133,0.55,3137.1,3134.5,0.748636]
[1720627471484,0.55,3137.3,3134.5,0.748636]
[1720627471833,0.55,3137.3,3134.6,0.55]
[1720627472731,2.04934306,3137.3,3134.6,0.55]
[1720627472973,2.7361,3136.8,3134.2,2.3816]
[1720627473134,0.3202,3136.6,3134.2,2.3816]
[1720627473535,0.55,3136.5,3134.2,2.3816]
[1720627473846,3.0,3136.7,3134.4,3.862]
[1720627474164,0.23821386,3137.2,3134.4,3.862]
[1720627474373,0.33279554,3137.4,3135.0,3.862]
[1720627474676,0.33279554,3137.4,3135.1,0.55]
[1720627475978,0.55,3137.3,3135.1,0.55]
[1720627476864,0.33279554,3137.4,3134.6,2.282]
[1720627477070,0.33279554,3137.4,3135.0,3.862]
[1720627477378,2.4323,3137.6,3135.1,0.9362]
[1720627477674,0.33284825,3137.5,3135.1,0.9362]
[1720627478173,0.65304825,3137.5,3135.1,0.9362]
[1720627478551,3.33284825,3137.5,3135.1,0.9362]
[1720627478864,3.33284825,3137.5,3134.6,2.282]
[1720627478865,1.83219131,3137.5,3134.6,2.282]
[1720627479066,1.83219131,3137.5,3134.7,0.55]
[1720627479067,0.3202,3137.3,3134.7,0.55]
[1720627479269,0.55,3137.2,3134.7,3.55]
[1720627479439,3.55,3137.4,3134.8,0.5832]
[1720627479641,3.0,3137.3,3134.9,0.55]
[1720627479874,0.55,3137.2,3134.9,0.55]
[1720627480183,3.8702,3137.4,3134.9,0.55]
[1720627480475,0.74050483,3137.3,3134.9,0.55]
[1720627480687,0.42030483,3137.3,3134.9,0.55]
[1720627481144,0.3202,3137.2,3134.9,0.55]
[1720627481344,0.55,3137.1,3134.9,0.55]
[1720627481742,0.55,3137.2,3134.9,0.55]